bitfinex-derivatives/quotes_BTCF0:USTF0_20220103
["timestamp","ask_amount","ask_price","bid_price","bid_amount"]
[1641224760111,0.30083165,46899.0,46897.0,0.18]
[1641224761418,0.10583165,46899.0,46897.0,0.18]
[1641224762015,0.23883165,46899.0,46897.0,0.311]
[1641224763316,0.23883165,46899.0,46897.0,0.18]
[1641224763317,0.10583165,46899.0,46897.0,0.18]
[1641224764014,0.25683165,46899.0,46897.0,0.308]
[1641224764919,0.001,46898.0,46897.0,0.308]
[1641224766021,0.158,46898.0,46897.0,0.319]
[1641224767420,0.001,46898.0,46897.0,0.18]
[1641224768120,0.151,46898.0,46897.0,0.277]
[1641224769520,0.001,46898.0,46897.0,0.18]
[1641224770022,0.182,46898.0,46897.0,0.336]
[1641224771421,0.001,46898.0,46897.0,0.18]
[1641224772122,0.137,46898.0,46897.0,0.321]
[1641224773327,0.001,46898.0,46897.0,0.18]
[1641224774023,0.169,46898.0,46897.0,0.305]
[1641224775526,0.001,46898.0,46897.0,0.18]
[1641224776128,0.149,46898.0,46897.0,0.263]
[1641224777328,0.001,46898.0,46897.0,0.18]
[1641224777527,0.001,46898.0,46896.0,0.14033567]
[1641224777728,0.001,46897.0,46896.0,0.14033567]
[1641224778129,0.001,46897.0,46896.0,0.31433567]
[1641224779229,0.172,46898.0,46896.0,0.31433567]
[1641224779429,0.172,46898.0,46897.0,0.18]
[1641224779641,0.0687051,46900.0,46897.0,0.18]
[1641224780041,0.177,46898.0,46897.0,0.306]
[1641224780443,0.178,46898.0,46897.0,0.126]
[1641224781544,0.12247085,46898.0,46891.0,0.6022706]
[1641224781744,0.001,46893.0,46891.0,0.6022706]
[1641224781945,0.001,46892.0,46891.0,0.6022706]
[1641224782145,0.002,46892.0,46889.0,0.6022706]
[1641224782444,0.001,46890.0,46889.0,0.6022706]
[1641224782845,0.1014929,46890.0,46889.0,0.6022706]
[1641224783046,0.1014929,46890.0,46889.0,0.18]
[1641224784249,0.2934929,46890.0,46889.0,0.18]
[1641224784551,0.2924929,46890.0,46889.0,0.18]
[1641224785849,0.2924929,46890.0,46889.0,0.36]
[1641224786249,0.2844929,46890.0,46889.0,0.335]
[1641224786852,0.2854929,46890.0,46889.0,0.335]
[1641224787351,0.185,46890.0,46889.0,0.335]
[1641224788254,0.371,46890.0,46889.0,0.502]
[1641224790054,0.001,46890.0,46889.0,0.18]
[1641224790254,0.187,46890.0,46889.0,0.349]
[1641224791655,0.001,46890.0,46889.0,0.18]
[1641224791953,0.001,46890.0,46889.0,1.23236623]
[1641224792156,0.187,46890.0,46889.0,1.40036623]
[1641224792653,0.08309176,46896.0,46890.0,0.009794]
[1641224792854,0.032,46903.0,46895.0,0.36]
[1641224793057,0.032,46903.0,46902.0,0.18]
[1641224794260,0.032,46903.0,46902.0,0.51433567]
[1641224795359,0.032,46903.0,46902.0,0.32033567]
[1641224796160,0.032,46903.0,46902.0,0.51633567]
[1641224797460,0.032,46903.0,46902.0,0.32033567]
[1641224798160,0.032,46903.0,46902.0,0.51633567]
[1641224799462,0.032,46903.0,46902.0,0.32033567]
[1641224800162,0.032,46903.0,46902.0,0.51633567]
[1641224800462,0.032,46903.0,46902.0,0.33633567]
[1641224800661,0.032,46903.0,46902.0,0.51633567]
[1641224801062,0.032,46903.0,46902.0,0.33633567]
[1641224801864,0.032,46903.0,46902.0,0.51633567]
[1641224802062,0.032,46903.0,46902.0,0.32033567]
[1641224802262,0.032,46903.0,46902.0,0.51233567]
[1641224803364,0.032,46903.0,46902.0,0.32033567]
[1641224804166,0.032,46903.0,46902.0,0.51433567]
[1641224805068,0.6278887,46911.0,46902.0,0.72544735]
[1641224805268,1.8011,46918.0,46910.0,0.36]
[1641224805565,1.8011,46918.0,46916.0,0.18]
[1641224805766,1.68473512,46919.0,46916.0,0.18]
[1641224805967,0.88548109,46921.0,46916.0,0.18]
[1641224806169,0.74652297,46923.0,46920.0,0.46067134]
[1641224806368,1.9927,46932.0,46922.0,0.18]
[1641224806570,0.3397,46936.0,46931.0,0.18]
[1641224806767,0.3397,46936.0,46935.0,0.18]
[1641224807166,0.16164177,46946.0,46935.0,0.18]
[1641224807567,0.0213061,46946.0,46935.0,0.18]
[1641224807767,0.21393405,46951.0,46936.0,0.18]
[1641224807967,0.02130407,46951.0,46936.0,0.18]
[1641224808270,0.86416341,46942.0,46937.0,0.42100701]
[1641224808467,0.86416341,46942.0,46941.0,0.18]
[1641224808668,0.86416341,46942.0,46941.0,0.27295]
[1641224810070,0.10504108,46944.0,46941.0,0.27295]
[1641224810272,0.10504108,46944.0,46943.0,0.14033567]
[1641224810470,0.10504108,46944.0,46943.0,0.32033567]
[1641224810669,0.02,46944.0,46943.0,0.32033567]
[1641224811269,0.02,46944.0,46943.0,0.14033567]
[1641224811868,0.02,46944.0,46937.0,0.14033567]
[1641224812072,0.0001,46943.0,46937.0,0.14033567]
[1641224812472,0.02130882,46940.0,46937.0,0.14033567]
[1641224813272,0.07310164,46939.0,46937.0,0.14033567]
[1641224813474,0.0001,46938.0,46929.0,0.14033567]
[1641224813671,0.0001,46938.0,46934.0,0.18]
[1641224814274,0.0001,46938.0,46934.0,0.373]
[1641224815474,0.07310164,46939.0,46934.0,0.373]
[1641224815675,0.14033567,46940.0,46934.0,0.193]
[1641224815876,0.14033567,46940.0,46938.0,0.18]
[1641224816076,0.02,46944.0,46938.0,0.36]
[1641224816475,0.02,46944.0,46943.0,0.18]
[1641224816677,0.02,46944.0,46943.0,0.25467]
[1641224818078,0.02,46944.0,46943.0,0.07467]
[1641224818279,0.02,46944.0,46943.0,0.45067]
[1641224819678,0.02,46944.0,46943.0,0.25467]
[1641224820178,0.02,46944.0,46943.0,0.45067]
[1641224821577,0.02,46944.0,46943.0,0.25467]
[1641224822279,0.02,46944.0,46943.0,0.45067]
[1641224823679,0.02,46944.0,46943.0,0.25467]
[1641224824280,0.02,46944.0,46943.0,0.45067]
[1641224824480,0.02130157,46956.0,46943.0,0.65196967]
[1641224824680,0.02130157,46956.0,46943.0,0.29196967]
[1641224824880,0.02130157,46956.0,46953.0,0.18]
[1641224825083,0.02130157,46956.0,46953.0,0.25635]
[1641224825282,0.02130157,46956.0,46953.0,0.07635]
[1641224825480,0.58184608,46961.0,46953.0,0.25635]
[1641224825882,0.14033567,46955.0,46953.0,0.25635]
[1641224826282,0.14033567,46955.0,46953.0,0.45235]
[1641224826783,0.14033567,46955.0,46953.0,0.27235]
[1641224827788,0.14033567,46955.0,46953.0,0.07635]
[1641224828184,0.14033567,46955.0,46953.0,0.196]
[1641224828600,0.21472783,46954.0,46953.0,0.196]
[1641224829001,0.21472783,46954.0,46953.0,0.15046998]
[1641224829701,0.21472783,46954.0,46952.0,0.18]
[1641224830101,0.21472783,46954.0,46944.0,0.18]
[1641224830304,0.21482783,46954.0,46952.0,0.196]
[1641224830802,0.001,46953.0,46943.0,0.14033567]
[1641224831004,0.02230752,46944.0,46939.0,0.60225818]
[1641224831205,0.0001,46943.0,46939.0,0.60225818]
[1641224831805,0.02130882,46940.0,46939.0,0.60225818]
[1641224832006,0.02230882,46940.0,46936.0,0.60225818]
[1641224832207,0.02130882,46940.0,46936.0,0.60225818]
[1641224832408,0.14033567,46937.0,46936.0,0.78225818]
[1641224833811,0.14033567,46937.0,46936.0,0.18]
[1641224834009,0.14033567,46937.0,46932.0,0.18]
[1641224834409,0.32733567,46937.0,46932.0,0.18]
[1641224834610,0.08270721,46936.0,46932.0,0.18]
[1641224834814,0.08270721,46936.0,46930.0,0.60225818]
[1641224835314,0.08270721,46936.0,46929.0,0.14033567]
[1641224835611,0.08270721,46936.0,46931.0,0.18]
[1641224836113,0.08270721,46936.0,46934.0,0.18]
[1641224836313,0.25570721,46936.0,46934.0,0.18]
[1641224837713,0.08270721,46936.0,46934.0,0.18]
[1641224838316,0.25070721,46936.0,46934.0,0.18]
[1641224839717,0.08270721,46936.0,46934.0,0.18]
[1641224840320,0.26770721,46936.0,46934.0,0.18]
[1641224840720,0.26780721,46936.0,46929.0,0.14033567]
[1641224841120,0.26780721,46936.0,46935.0,0.18]
[1641224841521,0.08280721,46936.0,46935.0,0.18]
[1641224841719,0.08280721,46936.0,46929.0,0.14033567]
[1641224841920,0.08280721,46936.0,46935.0,0.18]
[1641224842220,0.08380721,46936.0,46935.0,0.18]
[1641224844122,0.08380721,46936.0,46929.0,0.32033567]
[1641224844323,0.36537721,46936.0,46929.0,0.32033567]
[1641224844723,0.001,46931.0,46925.0,0.02130765]
[1641224844922,0.36537721,46936.0,46925.0,0.20130765]
[1641224845122,0.28267,46936.0,46925.0,0.18]
[1641224845422,0.001,46931.0,46930.0,0.18]
[1641224845824,0.001,46931.0,46920.0,0.18]
[1641224846025,0.11598053,46936.0,46920.0,0.18]
[1641224846224,0.11598053,46936.0,46919.0,0.05110453]
[1641224846424,0.30233567,46931.0,46926.0,0.06]
[1641224846625,0.30233567,46931.0,46930.0,0.18]
[1641224847726,0.14033567,46931.0,46930.0,0.18]
[1641224847932,0.14043567,46931.0,46919.0,0.02]
[1641224848232,0.14043567,46931.0,46925.0,0.18]
[1641224848428,0.32843567,46931.0,46928.0,0.18]
[1641224848829,0.32743567,46931.0,46928.0,0.18]
[1641224849431,0.09819902,46930.0,46928.0,0.18]
[1641224850332,0.28219902,46930.0,46928.0,0.18]
[1641224851733,0.09819902,46930.0,46928.0,0.18]
[1641224851932,0.09819902,46930.0,46924.0,0.60225818]
[1641224852434,0.28419902,46930.0,46924.0,0.60225818]
[1641224852637,0.28419902,46930.0,46924.0,0.18]
[1641224853636,0.09819902,46930.0,46923.0,0.60225818]
[1641224853838,0.001,46925.0,46922.0,0.60225818]
[1641224854038,0.09819902,46930.0,46923.0,0.18]
[1641224854236,0.08538388,46924.0,46922.0,0.60225818]
[1641224854438,0.185,46925.0,46922.0,0.60225818]
[1641224854650,0.185,46925.0,46923.0,1.40485321]
[1641224854851,0.001,46924.0,46923.0,1.40485321]
[1641224855250,0.001,46924.0,46923.0,1.58485321]
[1641224855851,0.002,46924.0,46923.0,1.58485321]
[1641224856051,0.002,46924.0,46923.0,1.40485321]
[1641224856251,0.002,46924.0,46923.0,0.60225818]
[1641224856452,0.19,46924.0,46922.0,0.60225818]
[1641224856652,0.002,46923.0,46922.0,0.60225818]
[1641224856852,0.001,46923.0,46922.0,0.60225818]
[1641224857054,0.0749,46923.0,46922.0,0.60225818]
[1641224857252,0.16117489,46923.0,46920.0,0.60225818]
[1641224857454,0.002,46921.0,46920.0,0.60225818]
[1641224857653,0.0021,46921.0,46919.0,0.8419173]
[1641224857852,0.002,46920.0,46910.0,3.33014014]
[1641224858053,0.02131826,46920.0,46916.0,0.18]
[1641224858253,0.002,46917.0,46916.0,0.18]
[1641224858457,0.14233567,46917.0,46916.0,0.18]
[1641224858653,0.14233567,46917.0,46914.0,1.19911206]
[1641224858853,0.001,46915.0,46914.0,1.19911206]
[1641224859053,0.002,46915.0,46914.0,1.19911206]
[1641224859458,0.001,46915.0,46914.0,1.19911206]
[1641224859654,0.002,46915.0,46913.0,0.18]
[1641224859855,0.002,46914.0,46913.0,0.18]
[1641224860256,0.001,46914.0,46913.0,0.18]
[1641224860456,0.187,46914.0,46913.0,0.87944702]
[1641224860656,0.186,46914.0,46913.0,0.87944702]
[1641224860856,0.187,46914.0,46913.0,0.87944702]
[1641224861058,0.186,46914.0,46913.0,0.87944702]
[1641224861258,0.187,46914.0,46913.0,0.87944702]
[1641224861657,0.002,46914.0,46913.0,0.87944702]
[1641224862457,0.182,46914.0,46913.0,0.87944702]
[1641224863358,0.182,46914.0,46910.0,0.18]
[1641224863560,0.181,46914.0,46913.0,0.18]
[1641224863758,0.001,46914.0,46913.0,0.18]
[1641224864458,0.186,46914.0,46913.0,0.18]
[1641224865759,0.001,46914.0,46913.0,0.18]
[1641224865960,0.001,46914.0,46906.0,0.03111025]
[1641224866163,0.09632258,46915.0,46913.0,0.18]
[1641224866360,0.185,46914.0,46913.0,0.18]
[1641224867660,0.001,46914.0,46913.0,0.18]
[1641224868361,0.185,46914.0,46913.0,0.18]
[1641224869662,0.001,46914.0,46913.0,0.18]
[1641224870365,0.185,46914.0,46913.0,0.18]
[1641224871764,0.001,46914.0,46913.0,0.18]
[1641224872365,0.184,46914.0,46913.0,0.18]
[1641224873766,0.001,46914.0,46913.0,0.18]
[1641224874365,0.185,46914.0,46913.0,0.18]
[1641224876273,0.001,46914.0,46913.0,0.18]
[1641224876471,0.185,46914.0,46913.0,0.18]
[1641224877872,0.001,46914.0,46913.0,0.18]
[1641224878472,0.186,46914.0,46913.0,0.18]
[1641224878674,0.186,46914.0,46905.0,0.14033567]
[1641224878875,0.186,46914.0,46905.0,0.32033567]
[1641224879073,0.185,46914.0,46905.0,0.32033567]
[1641224879674,0.001,46909.0,46905.0,0.14033567]
[1641224879875,0.0662,46909.0,46908.0,0.18]
[1641224880176,0.0672,46909.0,46908.0,0.18]
[1641224880374,0.2542,46909.0,46908.0,1.02084971]
[1641224880777,0.3235483,46909.0,46908.0,0.84084971]
[1641224881379,0.34487211,46909.0,46908.0,0.84084971]
[1641224881576,0.34487171,46909.0,46908.0,0.70105249]
[1641224881775,0.15787171,46909.0,46908.0,0.70105249]
[1641224881978,0.15887171,46909.0,46908.0,0.70105249]
[1641224882378,0.34687171,46909.0,46908.0,0.70105249]
[1641224882578,0.34587171,46909.0,46906.0,0.18]
[1641224882776,0.001,46907.0,46906.0,0.18]
[1641224884378,0.191,46907.0,46906.0,0.18]
[1641224884979,0.192,46907.0,46906.0,0.18]
[1641224885780,0.002,46907.0,46906.0,0.18]
[1641224885980,0.001,46907.0,46906.0,0.18]
[1641224886383,0.191,46907.0,46906.0,0.18]
[1641224886583,0.192,46907.0,46906.0,0.18]
[1641224887383,0.192,46907.0,46903.0,0.84084971]
[1641224887583,0.001,46904.0,46903.0,0.84084971]
[1641224887783,0.001,46904.0,46903.0,0.18]
[1641224888383,0.184,46904.0,46903.0,1.71078594]
[1641224889784,0.001,46904.0,46903.0,1.71078594]
[1641224890185,0.001,46904.0,46903.0,0.86993623]
[1641224890386,0.192,46904.0,46903.0,0.86993623]
[1641224890885,0.193,46904.0,46903.0,0.86993623]
[1641224891085,0.192,46904.0,46903.0,0.86993623]
[1641224891687,0.001,46904.0,46903.0,0.86993623]
[1641224892485,0.001,46904.0,46903.0,0.18]
[1641224892486,0.192,46904.0,46903.0,0.18]
[1641224892691,0.192,46904.0,46903.0,0.24118]
[1641224893290,0.84141867,46908.0,46903.0,0.24118]
[1641224893489,0.14033567,46911.0,46907.0,0.36]
[1641224893687,0.14033567,46911.0,46910.0,0.18]
[1641224894489,0.31133567,46911.0,46910.0,0.18]
[1641224895890,0.14033567,46911.0,46910.0,0.18]
[1641224896588,0.14033567,46911.0,46910.0,0.194]
[1641224896987,0.14033567,46911.0,46910.0,0.374]
[1641224898088,0.2295962,46911.0,46910.0,0.374]
[1641224898388,0.2295962,46911.0,46910.0,0.194]
[1641224898590,0.4045962,46911.0,46910.0,0.379]
[1641224898791,0.4035962,46911.0,46910.0,0.379]
[1641224899090,1.62762564,46911.0,46910.0,0.379]
[1641224899291,1.62862564,46911.0,46910.0,0.379]
[1641224899489,0.42591895,46911.0,46910.0,0.379]
[1641224899689,0.51290895,46911.0,46910.0,0.379]
[1641224899889,0.51290895,46911.0,46901.0,0.18]
[1641224899890,0.33890895,46911.0,46901.0,0.18]
[1641224900090,0.33790895,46911.0,46903.0,0.18]
[1641224900289,0.001,46906.0,46903.0,0.18]
[1641224900489,0.33790895,46911.0,46903.0,0.18]
[1641224900690,0.06013373,46905.0,46903.0,0.18]
[1641224900892,0.16165842,46911.0,46903.0,0.18]
[1641224901093,1.20282751,46908.0,46903.0,0.18]
[1641224901592,0.06773766,46907.0,46906.0,0.18]
[1641224901993,0.06973766,46907.0,46897.0,0.14033567]
[1641224902193,0.06773766,46907.0,46902.0,0.18]
[1641224902393,0.001,46903.0,46902.0,0.18]
[1641224902793,1.20282751,46908.0,46902.0,0.18]
[1641224902993,0.002,46903.0,46898.0,0.18]
[1641224903195,0.2127,46907.0,46902.0,0.18]
[1641224903406,0.001,46903.0,46898.0,0.18]
[1641224903705,0.001,46899.0,46898.0,0.18]
[1641224903905,1.20282751,46909.0,46898.0,0.18]
[1641224904105,1.20282751,46909.0,46907.0,0.18]
[1641224904309,0.001,46908.0,46898.0,0.18]
[1641224904506,0.0001,46907.0,46902.0,0.18]
[1641224904706,0.0001,46907.0,46898.0,0.193]
[1641224905607,0.06998253,46906.0,46898.0,0.193]
[1641224905805,0.06998253,46906.0,46897.0,0.32033567]
[1641224906506,0.06998253,46906.0,46897.0,1.11103566]
[1641224906706,1.27281004,46906.0,46897.0,1.11103566]
[1641224907308,2.39181004,46906.0,46897.0,1.11103566]
[1641224907707,2.39181004,46906.0,46897.0,0.79069999]
[1641224907907,2.39181004,46906.0,46897.0,0.59869999]
[1641224908309,0.001,46901.0,46897.0,0.59869999]
[1641224908510,0.002,46898.0,46897.0,0.79469999]
[1641224908711,0.001,46898.0,46897.0,0.196]
[1641224909110,0.002,46898.0,46897.0,0.196]
[1641224909310,1.20482751,46898.0,46897.0,0.196]
[1641224909710,1.20382751,46898.0,46897.0,0.196]
[1641224909910,1.20482751,46898.0,46897.0,0.196]
[1641224910511,1.20382751,46898.0,46897.0,0.198]
[1641224911912,1.20382751,46898.0,46895.0,0.18]
[1641224912112,0.001,46896.0,46895.0,0.18]
[1641224912311,0.0772678,46896.0,46895.0,0.18]
[1641224912511,0.0772678,46896.0,46895.0,0.378]
[1641224913814,0.0772678,46896.0,46895.0,0.18]
[1641224914415,0.0772678,46896.0,46895.0,0.374]
[1641224915814,0.0772678,46896.0,46895.0,0.18]
[1641224916415,0.0772678,46896.0,46895.0,0.375]
[1641224916714,0.0782678,46896.0,46895.0,0.375]
[1641224917317,1.28009531,46896.0,46895.0,0.375]
[1641224917514,1.28109531,46896.0,46895.0,0.375]
[1641224917916,1.28109531,46896.0,46895.0,0.18]
[1641224918517,1.28109531,46896.0,46895.0,0.373]
[1641224918917,1.28009531,46896.0,46895.0,0.373]
[1641224919117,1.28009531,46896.0,46895.0,0.193]
[1641224919318,1.28109531,46896.0,46895.0,0.193]
[1641224919717,1.28009531,46896.0,46895.0,0.373]
[1641224919919,1.28109531,46896.0,46895.0,0.373]
[1641224920319,1.28109531,46896.0,46895.0,0.18]
[1641224920520,1.28109531,46896.0,46895.0,0.371]
[1641224920818,1.20482751,46896.0,46895.0,0.371]
[1641224921019,0.002,46896.0,46895.0,0.371]
[1641224921820,0.002,46896.0,46895.0,0.18]
[1641224922020,0.001,46896.0,46895.0,0.18]
[1641224922422,0.001,46896.0,46895.0,0.375]
[1641224923822,0.001,46896.0,46895.0,0.18]
[1641224924420,0.001,46896.0,46895.0,0.375]
[1641224925024,0.001,46896.0,46895.0,2.30854796]
[1641224925722,0.001,46896.0,46895.0,0.91172131]
[1641224926420,0.001,46896.0,46895.0,1.10672131]
[1641224927823,0.001,46896.0,46895.0,0.91172131]
[1641224928022,0.002,46896.0,46895.0,0.91172131]
[1641224928422,0.002,46896.0,46895.0,1.10572131]
[1641224929322,0.001,46896.0,46895.0,1.10572131]
[1641224929524,0.002,46896.0,46895.0,1.10572131]
[1641224929923,0.001,46896.0,46895.0,0.91172131]
[1641224930426,0.001,46896.0,46895.0,1.10672131]
[1641224930824,0.002,46896.0,46895.0,1.10672131]
[1641224931026,0.001,46896.0,46895.0,1.10672131]
[1641224931225,0.002,46896.0,46895.0,1.10672131]
[1641224931425,0.001,46896.0,46895.0,1.10672131]
[1641224931925,0.001,46896.0,46895.0,0.91172131]
[1641224932327,1.2055997,46896.0,46895.0,2.11354796]
[1641224932525,1.2055997,46896.0,46895.0,2.30854796]
[1641224933327,1.2055997,46896.0,46895.0,2.48854796]
[1641224933727,1.2055997,46896.0,46895.0,2.30854796]
[1641224933926,1.2055997,46896.0,46895.0,2.11354796]
[1641224933927,0.001,46896.0,46895.0,2.11354796]
[1641224934328,1.68453331,46920.0,46895.0,2.29354796]
[1641224934529,0.0213187,46918.0,46910.0,0.18]
[1641224934729,0.35478845,46918.0,46914.0,0.18]
[1641224935631,0.07125419,46915.0,46914.0,0.18]
[1641224936032,0.02131712,46922.0,46914.0,0.18]
[1641224936431,0.06567724,46920.0,46914.0,0.372]
[1641224936631,0.02131712,46922.0,46914.0,0.372]
[1641224936830,0.001,46915.0,46914.0,0.192]
[1641224937031,0.02131832,46919.0,46914.0,0.192]
[1641224937834,0.02131832,46919.0,46913.0,0.18]
[1641224938034,0.0001,46923.0,46913.0,0.18]
[1641224938337,0.02131692,46922.0,46913.0,0.18]
[1641224938532,0.02131692,46922.0,46913.0,0.376]
[1641224939536,0.09493997,46915.0,46913.0,0.376]
[1641224939735,0.17163997,46915.0,46913.0,0.376]
[1641224939934,0.17163997,46915.0,46913.0,0.18]
[1641224940536,0.34663997,46915.0,46913.0,0.366]
[1641224941134,0.001,46914.0,46913.0,0.366]
[1641224941637,0.34663997,46915.0,46913.0,0.366]
[1641224941933,0.17163997,46915.0,46913.0,0.18]
[1641224942135,0.0767,46915.0,46913.0,0.18]
[1641224942334,0.14033567,46924.0,46914.0,0.009794]
[1641224942535,0.14033567,46924.0,46914.0,0.089754]
[1641224942936,0.02131722,46922.0,46914.0,0.089754]
[1641224943235,0.001,46915.0,46914.0,0.089754]
[1641224943636,0.001,46915.0,46911.0,0.83731779]
[1641224943937,0.001,46912.0,46895.0,1.55749246]
[1641224944136,0.10658391,46911.0,46895.0,1.55749246]
[1641224944334,0.10658391,46911.0,46899.0,1.44145665]
[1641224944335,1.22558391,46911.0,46899.0,1.44145665]
[1641224944540,1.22558391,46911.0,46909.0,0.59670354]
[1641224944737,0.001,46910.0,46909.0,0.50580354]
[1641224945036,0.28267134,46910.0,46909.0,0.50580354]
[1641224945439,0.28267134,46910.0,46899.0,1.44145665]
[1641224945637,0.0001,46909.0,46893.0,1.8911]
[1641224945838,0.06243,46909.0,46890.0,0.18]
[1641224946040,0.06243,46909.0,46893.0,0.18]
[1641224946338,0.02132801,46898.0,46893.0,0.18]
[1641224946537,0.09278801,46898.0,46893.0,0.18]
[1641224946737,0.001,46894.0,46893.0,0.18]
[1641224947337,0.05350372,46894.0,46893.0,0.18]
[1641224948641,0.21450372,46894.0,46893.0,0.18]
[1641224949840,0.05450372,46894.0,46893.0,0.18]
[1641224950541,0.21450372,46894.0,46893.0,0.18]
[1641224950741,0.21450372,46894.0,46889.0,0.18]
[1641224950942,0.29200372,46894.0,46887.0,0.80986767]
[1641224951344,0.29210372,46894.0,46887.0,0.80986767]
[1641224951941,0.13210372,46894.0,46892.0,0.18]
[1641224952142,0.001,46893.0,46892.0,0.18]
[1641224952842,0.001,46893.0,46892.0,1.01816529]
[1641224953442,0.001,46893.0,46892.0,0.18]
[1641224954443,0.191,46893.0,46892.0,0.18]
[1641224955044,0.191,46893.0,46892.0,1.01816529]
[1641224955742,0.001,46893.0,46892.0,1.01816529]
[1641224956346,0.002,46893.0,46892.0,1.01816529]
[1641224956544,0.193,46893.0,46892.0,1.01816529]
[1641224956743,0.193,46893.0,46892.0,0.18]
[1641224957743,0.192,46893.0,46892.0,0.18]
[1641224957945,0.002,46893.0,46892.0,0.18]
[1641224958343,0.001,46893.0,46892.0,0.18]
[1641224958553,0.194,46893.0,46892.0,0.18]
[1641224958747,0.194,46893.0,46891.0,1.19737898]
[1641224959046,0.001,46892.0,46891.0,1.19737898]
[1641224959445,0.001,46892.0,46890.0,1.37737898]
[1641224959644,0.001,46891.0,46890.0,1.37737898]
[1641224959846,0.0001,46894.0,46890.0,1.37737898]
[1641224960044,0.0001,46894.0,46890.0,1.26847898]
[1641224960251,0.0001,46894.0,46891.0,0.18]
[1641224960444,0.1941,46894.0,46891.0,0.18]
[1641224961047,0.21542973,46894.0,46890.0,0.0711]
[1641224961246,0.21542973,46894.0,46890.0,1.19737898]
[1641224961445,0.001,46891.0,46890.0,1.19737898]
[1641224961646,0.21542973,46894.0,46890.0,1.19737898]
[1641224961846,0.21542973,46894.0,46890.0,1.37737898]
[1641224962045,0.001,46891.0,46890.0,0.18]
[1641224964548,0.196,46891.0,46890.0,0.18]
[1641224965549,0.196,46891.0,46889.0,1.19737898]
[1641224965749,0.001,46890.0,46889.0,1.19737898]
[1641224965950,0.002,46890.0,46889.0,1.19737898]
[1641224966151,0.001,46890.0,46889.0,1.19737898]
[1641224966450,0.194,46890.0,46889.0,1.19737898]
[1641224966755,0.195,46890.0,46889.0,1.19737898]
[1641224966950,0.194,46890.0,46888.0,1.37737898]
[1641224967150,0.001,46889.0,46888.0,1.37737898]
[1641224968052,0.002,46889.0,46888.0,1.37737898]
[1641224968252,0.001,46889.0,46888.0,1.37737898]
[1641224968453,0.189,46889.0,46888.0,1.37737898]
[1641224969052,0.188,46889.0,46888.0,1.37737898]
[1641224969257,0.189,46889.0,46888.0,1.37737898]
[1641224970454,0.189,46889.0,46888.0,0.18]
[1641224970653,0.188,46889.0,46888.0,0.18]
[1641224970852,0.189,46889.0,46888.0,0.18]
[1641224971454,0.188,46889.0,46888.0,0.18]
[1641224971957,0.001,46889.0,46888.0,0.18]
[1641224972557,0.189,46889.0,46888.0,0.18]
[1641224973858,0.001,46889.0,46888.0,0.18]
[1641224974461,0.156,46889.0,46888.0,0.18]
[1641224974868,0.157,46889.0,46888.0,0.18]
[1641224975067,0.156,46889.0,46888.0,0.18]
[1641224975268,0.157,46889.0,46888.0,0.18]
[1641224975668,0.24029203,46889.0,46888.0,0.18]
[1641224975867,0.08429203,46889.0,46888.0,0.18]
[1641224976470,0.24729203,46889.0,46888.0,0.18]
[1641224977871,0.08429203,46889.0,46888.0,0.18]
[1641224978572,0.14229203,46889.0,46888.0,0.18]
[1641224979871,0.08429203,46889.0,46888.0,0.18]
[1641224980672,1.46050935,46889.0,46888.0,0.7927669]
[1641224982378,1.28650935,46889.0,46888.0,0.7927669]
[1641224982577,1.46050935,46889.0,46888.0,0.7927669]
[1641224983982,1.28650935,46889.0,46888.0,0.7927669]
[1641224984686,1.46050935,46889.0,46888.0,0.7927669]
[1641224985685,1.46050935,46889.0,46888.0,1.99451053]
[1641224986085,1.45950935,46889.0,46888.0,1.99451053]
[1641224986489,1.28550935,46889.0,46888.0,1.99451053]
[1641224986687,1.46650935,46889.0,46888.0,0.7927669]
[1641224987392,0.26429203,46889.0,46888.0,0.7927669]
[1641224987592,0.26529203,46889.0,46888.0,1.99461712]
[1641224987787,0.26429203,46889.0,46888.0,1.99461712]
[1641224987988,0.08429203,46889.0,46888.0,1.99461712]
[1641224988587,0.26129203,46889.0,46888.0,1.99461712]
[1641224988989,0.26029203,46889.0,46888.0,1.99461712]
[1641224989190,0.26129203,46889.0,46888.0,1.99461712]
[1641224989490,0.26029203,46889.0,46888.0,1.99461712]
[1641224990089,0.08429203,46889.0,46888.0,1.99461712]
[1641224990690,0.26129203,46889.0,46888.0,1.99461712]
[1641224991090,0.26029203,46889.0,46888.0,1.99461712]
[1641224991691,0.26029203,46889.0,46888.0,0.7927669]
[1641224991892,0.08329203,46889.0,46888.0,0.7927669]
[1641224992595,0.26229203,46889.0,46888.0,0.7927669]
[1641224992994,0.26129203,46889.0,46888.0,0.7927669]
[1641224993393,0.26229203,46889.0,46888.0,0.7927669]
[1641224993995,0.08429203,46889.0,46888.0,0.7927669]
[1641224994596,0.26029203,46889.0,46888.0,0.7927669]
[1641224994797,0.26029203,46889.0,46888.0,0.6127669]
[1641224995296,0.26029203,46889.0,46888.0,0.7927669]
[1641224995698,0.26029203,46889.0,46888.0,0.18]
[1641224996099,0.08429203,46889.0,46888.0,0.18]
[1641224996300,0.08429203,46889.0,46888.0,0.7927669]
[1641224996498,0.08429203,46889.0,46888.0,1.45591956]
[1641224996701,0.26429203,46889.0,46888.0,1.45591956]